bitfinex-derivatives/quotes_ETHF0:USTF0_20250824
["timestamp","ask_amount","ask_price","bid_price","bid_amount"]
[1756041448967,1.3199,4772.7,4772.6,1.85270654]
[1756041449370,1.3199,4772.7,4772.6,1.72320654]
[1756041449562,1.3199,4772.7,4772.6,1.56491593]
[1756041449763,1.3199,4772.7,4772.6,1.14604]
[1756041449963,1.3199,4772.7,4772.6,1.65614]
[1756041450468,1.3199,4772.7,4772.6,1.52664]
[1756041450675,1.3199,4772.7,4772.6,0.80074]
[1756041451168,0.5377,4772.7,4772.5,0.41915]
[1756041451374,1.3199,4772.6,4772.5,0.41915]
[1756041451771,0.5377,4772.2,4772.1,0.64059]
[1756041451976,1.3199,4772.2,4772.1,0.61577135]
[1756041452168,1.3199,4772.2,4772.1,0.19658135]
[1756041452569,1.3199,4771.9,4771.8,0.41921]
[1756041452768,1.3199,4771.9,4771.8,0.61581106]
[1756041452970,1.3199,4771.9,4771.8,0.77601106]
[1756041453172,1.3199,4771.9,4771.8,1.56501106]
[1756041453680,1.3199,4771.9,4771.8,1.85251106]
[1756041454679,1.3199,4772.3,4772.2,1.65588]
[1756041454872,0.7639,4772.3,4772.2,1.65588]
[1756041455681,1.3199,4772.3,4772.2,1.65588]
[1756041456783,0.7639,4772.3,4772.2,1.65588]
[1756041457284,1.1088,4772.3,4772.2,1.85247266]
[1756041457474,1.3443,4772.3,4772.2,1.70967266]
[1756041457673,1.3443,4772.3,4772.2,1.83947266]
[1756041458775,1.3443,4772.3,4772.2,1.83947039]
[1756041459983,1.3443,4772.3,4772.2,1.64288]
[1756041460284,1.3443,4772.3,4772.2,1.83947079]
[1756041462083,1.3443,4772.3,4772.2,1.83947161]
[1756041463477,1.3443,4772.3,4772.2,0.99737161]
[1756041463785,1.3443,4772.3,4772.2,0.61577161]
[1756041464887,1.3443,4772.3,4772.2,0.19659161]
[1756041465487,0.5377,4772.3,4772.2,0.19659937]
[1756041465997,0.5377,4772.3,4772.1,0.41918]
[1756041466283,1.3497,4772.3,4772.2,0.19659936]
[1756041467084,1.3497,4772.3,4772.2,0.35519936]
[1756041467279,1.3497,4772.3,4772.2,0.59179936]
[1756041467490,1.3497,4772.3,4772.2,0.35519936]
[1756041469895,1.3497,4772.3,4772.2,0.19659936]
[1756041469896,1.94596265,4772.3,4772.2,0.19659936]
[1756041470187,1.1126,4771.5,4771.4,0.81445]
[1756041470394,1.3442,4771.5,4771.4,1.01106968]
[1756041470584,1.3442,4771.5,4771.4,1.35406968]
[1756041470782,1.1126,4771.9,4771.8,1.2352]
[1756041471085,1.1126,4772.2,4772.1,1.65439]
[1756041471282,1.94047579,4772.2,4772.1,1.85100968]
[1756041472082,1.94047579,4772.2,4772.1,1.8509963]
[1756041473890,1.78907579,4772.2,4772.1,1.8509963]
[1756041474189,1.94047579,4772.2,4772.1,1.8509963]
[1756041474487,1.94047579,4772.2,4772.1,1.7211963]
[1756041474993,1.3442,4772.2,4772.1,1.8509963]
[1756041475488,1.3442,4772.2,4772.1,1.85099123]
[1756041475992,1.3442,4772.2,4772.1,1.85099096]
[1756041476189,1.3442,4772.2,4772.1,0.77439096]
[1756041476383,0.5804,4771.7,4771.4,0.343]
[1756041476689,1.3442,4771.1,4771.0,1.15748]
[1756041476988,1.3442,4771.1,4771.0,0.77451149]
[1756041477283,1.3442,4771.1,4771.0,0.19663149]
[1756041478987,1.3442,4771.1,4771.0,0.57773149]
[1756041479179,1.3442,4771.1,4771.0,1.43183149]
[1756041479687,0.7638,4771.1,4771.0,1.43183149]
[1756041480081,1.3442,4771.1,4771.0,1.43183149]
[1756041480285,0.812,4772.1,4771.0,0.19663149]
[1756041480582,1.3442,4771.6,4771.5,0.3811]
[1756041480780,1.94016879,4771.6,4771.5,0.3811]
[1756041480992,0.812,4771.5,4771.2,0.2366]
[1756041481188,0.7677,4771.1,4770.5,0.2366]
[1756041481395,1.3442,4771.0,4770.9,0.57789]
[1756041481693,1.3442,4771.0,4770.9,0.7745354]
[1756041481893,1.3442,4771.0,4770.9,1.5766354]
[1756041482892,1.3442,4771.0,4770.9,1.2336354]
[1756041483096,1.3442,4771.0,4770.9,1.8511354]
[1756041484296,1.3442,4771.0,4770.9,1.65449]
[1756041484498,1.3442,4771.0,4770.9,1.72133652]
[1756041484996,1.3442,4771.0,4770.9,1.85113428]
[1756041486995,0.7638,4771.0,4770.9,1.85113428]
[1756041487202,1.1169,4771.3,4771.2,1.65687]
[1756041487403,1.344,4771.3,4771.2,1.65687]
[1756041488998,0.764,4771.3,4771.2,1.65687]
[1756041489298,0.1567,4771.3,4771.2,1.65687]
[1756041489505,1.344,4771.6,4771.5,1.65684]
[1756041489705,1.93931174,4771.6,4771.5,1.2376]
[1756041489905,1.93931174,4771.6,4771.5,0.1497]
[1756041490904,1.93931174,4771.6,4771.2,0.2174]
[1756041490905,0.8109,4771.5,4771.2,0.98276]
[1756041491105,0.5331,4771.5,4771.4,0.41925]
[1756041491305,0.5331,4771.5,4771.3,0.41926]
[1756041491705,1.344,4771.4,4771.3,0.41926]
[1756041493414,1.344,4771.4,4771.3,0.56896]
[1756041493705,0.9911,4771.4,4771.3,1.65686]
[1756041494007,0.2309,4771.8,4771.7,1.65682]
[1756041494211,1.1131,4772.2,4772.1,1.2376]
[1756041494414,1.70360772,4772.2,4772.1,1.2376]
[1756041494610,1.93450772,4772.2,4772.1,1.2376]
[1756041496011,1.344,4772.2,4772.1,1.2376]
[1756041496408,0.2309,4772.5,4772.4,0.65846]
[1756041496612,0.2309,4772.5,4772.4,1.85336265]
[1756041497008,0.764,4773.0,4772.9,1.65672]
[1756041497206,0.74456872,4773.0,4772.9,1.85329537]
[1756041497405,0.7602,4773.2,4773.1,0.9638]
[1756041497606,1.344,4773.2,4773.1,1.6567]
[1756041499001,0.3849,4773.2,4773.1,1.82861299]
[1756041499408,1.1131,4773.5,4773.4,1.65667]
[1756041500007,1.344,4773.5,4773.4,1.65667]
[1756041502316,0.764,4773.5,4773.4,1.65667]
[1756041502505,1.344,4773.5,4773.4,1.65667]
[1756041503315,0.3849,4773.5,4773.4,1.65667]
[1756041503518,1.1131,4773.9,4773.8,0.96374]
[1756041503706,1.1131,4773.9,4773.8,1.52724]
[1756041504216,1.344,4773.9,4773.8,1.52724]
[1756041504415,1.344,4773.9,4773.8,0.1497]
[1756041504720,1.344,4773.7,4773.6,1.37155]
[1756041505609,1.344,4773.7,4773.6,0.56875]
[1756041506313,1.344,4773.7,4773.6,1.13225]
[1756041506712,1.344,4773.7,4773.6,0.56875]
[1756041506914,1.344,4773.7,4773.6,0.96375]
[1756041507118,1.344,4773.7,4773.6,1.37155]
[1756041507616,30.195,4774.6,4773.6,1.37155]
[1756041507617,30.195,4774.6,4773.7,0.41905]
[1756041507918,0.2309,4774.0,4773.9,1.2376]
[1756041508219,1.344,4774.0,4773.9,1.2376]
[1756041508916,1.344,4773.5,4773.4,1.1082]
[1756041509122,1.344,4773.5,4773.4,1.52727]
[1756041509508,1.344,4773.5,4773.4,1.65667]
[1756041511118,1.344,4773.9,4773.8,1.65714]
[1756041511516,0.2309,4773.9,4773.8,1.65714]
[1756041511819,1.344,4774.2,4774.1,1.65711]
[1756041512020,0.764,4774.2,4774.1,1.65711]
[1756041512217,1.344,4774.5,4774.4,1.65708]
[1756041512411,0.5331,4774.5,4774.2,0.419]
[1756041512616,1.344,4774.3,4774.2,1.3098]
[1756041512815,0.7378,4774.3,4774.2,1.6571]
[1756041513019,1.1131,4774.7,4774.6,0.96367]
[1756041513212,1.1131,4774.7,4774.6,1.65707]
[1756041513615,1.344,4774.7,4774.6,1.65707]
[1756041514523,0.764,4774.7,4774.6,1.65707]
[1756041515717,0.7378,4775.4,4775.3,0.9525]
[1756041515922,1.344,4775.4,4775.3,1.2381]
[1756041516934,0.9744,4775.9,4775.8,1.65716]
[1756041517526,1.3022,4775.9,4775.8,1.52776]
[1756041517725,1.3022,4775.9,4775.8,1.14076]
[1756041517929,1.3022,4775.9,4775.8,0.9515]
[1756041519728,1.72105,4775.9,4775.8,0.3817]
[1756041520032,1.3022,4775.9,4775.8,0.3817]
[1756041520632,1.3022,4775.9,4775.8,0.1554]
[1756041521035,1.3022,4775.9,4775.8,0.7252]
[1756041521226,1.3022,4775.9,4775.8,0.9515]
[1756041523023,1.3022,4775.9,4775.8,1.1089]
[1756041523238,0.2249,4776.4,4776.3,1.65712]
[1756041523428,1.3022,4776.4,4776.3,0.1554]
[1756041523729,1.3022,4776.4,4776.3,1.52772]
[1756041523933,0.7463,4776.4,4776.3,1.65712]
[1756041524125,0.5559,4776.8,4776.7,0.41878]
[1756041524326,1.6606849,4776.8,4776.7,0.95788]
[1756041524530,1.6606849,4776.8,4776.7,1.65708]
[1756041524731,1.8855849,4776.8,4776.7,1.65708]
[1756041525129,1.8855849,4776.8,4776.7,1.1089]
[1756041525734,1.8855849,4776.8,4776.7,1.2383]
[1756041526132,0.9546849,4776.8,4776.7,1.2383]
[1756041526723,1.1078849,4776.8,4776.7,1.2383]
[1756041526928,0.9546849,4776.8,4776.7,1.2383]
[1756041527529,0.5833849,4776.8,4776.7,1.2383]
[1756041527729,0.9209,4777.4,4777.3,0.3837]
[1756041527934,1.8855196,4777.4,4777.3,1.2383]
[1756041529039,1.8855196,4777.4,4777.3,1.1089]
[1756041529434,1.8855196,4777.4,4777.3,1.2383]
[1756041530126,1.8855196,4777.4,4777.3,1.1089]
[1756041530333,1.8855196,4777.4,4777.3,1.2383]
[1756041530734,1.5577196,4777.4,4777.3,1.2383]
[1756041530929,1.8855196,4777.4,4777.3,1.2383]
[1756041531335,1.6574196,4777.4,4777.3,1.2383]
[1756041531537,0.2996,4777.7,4777.6,0.3128]
[1756041531833,1.10402279,4777.7,4777.6,1.2383]
[1756041532240,0.58262279,4777.7,4777.6,1.2383]
[1756041532437,0.80752279,4777.7,4777.6,1.2383]
[1756041532832,0.58262279,4777.7,4777.6,5.2383]
[1756041533639,0.58262279,4777.7,4777.6,5.40242163]
[1756041533841,0.58262279,4777.7,4777.6,5.2383]
[1756041534831,0.58262279,4777.7,4777.6,1.2383]
[1756041535542,0.3278,4779.1,4777.7,0.1294]
[1756041535736,0.3781,4778.8,4778.7,0.1554]
[1756041535942,0.7463,4778.8,4778.7,0.1554]
[1756041536237,0.7463,4778.8,4778.7,0.6718]
[1756041536440,1.3022,4778.8,4778.7,0.1554]
[1756041536640,1.3022,4778.8,4778.7,0.4422]
[1756041536841,1.3022,4778.8,4778.4,0.41863]
[1756041537036,1.3022,4778.5,4778.4,0.57403]
[1756041537243,1.3022,4778.5,4778.4,1.09043]
[1756041537744,1.3022,4778.5,4778.4,0.73143]
[1756041537941,1.3022,4778.5,4778.4,1.09043]
[1756041538240,1.3022,4778.5,4778.4,0.73143]
[1756041539242,1.3022,4778.5,4778.4,0.86083]
[1756041539452,1.3022,4778.5,4778.4,0.73143]
[1756041539642,1.3022,4778.5,4778.4,0.57403]
[1756041539843,1.04638,4779.5,4777.7,0.1554]
[1756041540141,1.3022,4777.6,4777.5,0.1681709]
[1756041540337,0.5214,4777.5,4777.4,0.1554]
[1756041540946,1.3022,4777.5,4777.4,0.32359782]
[1756041541139,1.3022,4777.5,4777.4,0.61039782]
[1756041541448,1.3022,4777.5,4777.4,0.16819782]
[1756041541640,1.3022,4777.5,4777.3,0.41873]
[1756041541833,1.3022,4777.4,4777.3,0.57413]
[1756041542543,1.3022,4777.4,4777.3,0.97345628]
[1756041542746,1.3022,4777.4,4777.3,1.26025628]
[1756041543451,0.2249,4777.4,4777.3,1.26025628]
[1756041543635,1.3022,4777.8,4777.7,1.09049]
[1756041544041,1.3022,4777.8,4777.7,0.86089]
[1756041544746,1.3022,4777.8,4777.7,1.09049]
[1756041545444,1.3022,4777.8,4777.7,1.35251106]
[1756041546839,1.3022,4777.8,4777.7,0.83611106]
[1756041547041,1.3022,4777.8,4777.7,0.98371106]
[1756041547348,1.3022,4777.8,4777.7,1.33171106]
[1756041547645,1.7315874,4777.8,4777.7,1.33171106]
[1756041547847,1.8858874,4777.8,4777.7,1.33171106]
[1756041549143,0.5757874,4777.8,4777.7,5.52807714]
[1756041549348,1.3054,4778.6,4778.5,1.06633]
[1756041549643,1.88137274,4778.6,4778.5,1.32863759]
[1756041550446,1.55487274,4778.6,4778.5,1.5249806]
[1756041550648,0.57597274,4778.6,4778.5,1.5249806]
[1756041551747,0.8561,4779.0,4778.9,0.71829]
[1756041551942,1.87322271,4779.0,4778.9,1.5249406]
[1756041552137,1.87322271,4779.0,4778.9,0.4586506]
[1756041552138,0.56782271,4779.0,4778.9,0.4586506]
[1756041552342,1.63242271,4779.0,4778.9,0.4586506]
[1756041552542,1.63242271,4779.0,4778.9,0.0975506]
[1756041552742,1.3054,4778.2,4778.1,0.41866]
[1756041552951,1.3054,4778.2,4777.9,0.74938]
[1756041553138,1.04634,4779.6,4777.9,0.41868]
[1756041553139,1.3054,4778.0,4777.9,0.41868]
[1756041553947,1.3054,4778.0,4777.9,1.13648]
[1756041554247,0.9789,4778.0,4777.9,1.60838]
[1756041554549,0.7523,4778.0,4777.9,1.60838]
[1756041554952,0.9789,4778.0,4777.9,1.60838]
[1756041555251,1.3054,4778.0,4777.9,1.41388]
[1756041555445,0.7523,4778.0,4777.9,1.60838]
[1756041555640,1.3054,4778.0,4777.9,0.57078]
[1756041555842,1.3054,4778.0,4777.9,0.41868]
[1756041557143,1.3054,4777.4,4777.3,0.74055628]
[1756041557450,1.3054,4777.4,4777.3,0.58845628]
[1756041557948,1.3054,4777.4,4777.3,0.41873]
[1756041562860,0.5296,4777.0,4776.1,0.4605]
[1756041563055,1.3054,4776.7,4776.6,0.41879]
[1756041563245,0.7534,4776.5,4776.4,0.41881]
[1756041563444,1.3054,4776.5,4776.4,0.41881]
[1756041564048,1.3054,4776.5,4776.4,1.28421]
[1756041564253,1.58253674,4776.5,4776.4,1.60851]
[1756041564459,0.60363674,4776.5,4776.4,1.60851]
[1756041564652,0.3742,4776.9,4776.8,1.60848]
[1756041564852,0.4493,4777.4,4777.3,0.41873]
[1756041565057,1.04937085,4777.4,4777.3,1.87288479]
[1756041565449,1.57897085,4777.4,4777.3,1.87288479]
[1756041565956,0.82557085,4777.4,4777.3,2.06926613]
[1756041566150,0.7534,4777.8,4777.7,0.9534]
[1756041566352,1.67889892,4777.8,4777.7,1.54855479]
[1756041566654,1.90439892,4777.8,4777.7,1.54855479]
[1756041566844,1.90439892,4777.8,4777.7,0.26445479]
[1756041568754,0.4187,4777.7,4777.2,0.41874]
[1756041568959,0.4187,4777.7,4774.7,23.04272]
[1756041568960,1.3054,4776.1,4776.0,0.57095]
[1756041569153,1.3054,4776.1,4776.0,0.76736672]
[1756041569355,1.3054,4776.1,4776.0,0.57095]
[1756041569653,1.0788,4776.1,4776.0,1.50245]
[1756041569956,1.0816,4776.8,4776.7,0.80589]
[1756041570148,1.52626087,4776.8,4776.7,1.63219]
[1756041570344,1.90436087,4776.8,4776.7,0.78909]
[1756041570545,1.90436087,4776.8,4776.7,0.41879]
[1756041570748,1.3054,4775.9,4775.4,19.7932]
[1756041570946,1.3054,4775.6,4775.5,0.41889]
[1756041571152,0.2266,4775.0,4774.9,0.3307]
[1756041571351,1.3054,4775.0,4774.9,0.57104]
[1756041571549,1.3054,4775.0,4774.9,1.13674]
[1756041571754,1.3054,4775.0,4774.9,1.82801403]
[1756041572351,1.3054,4775.0,4774.9,0.57104]
[1756041573166,1.3054,4775.0,4774.9,0.1521]
[1756041573460,1.3054,4774.6,4774.5,0.41898]
[1756041573660,0.5296,4774.6,4774.5,0.41898]
[1756041573861,0.5296,4774.6,4774.0,0.41902]
[1756041574159,0.5296,4774.1,4774.0,0.41901]
[1756041574459,1.3054,4774.1,4774.0,1.35501]
[1756041574855,1.3054,4774.1,4774.0,1.50261]
[1756041575459,0.7758,4774.6,4774.5,0.57108]
[1756041575659,1.3054,4774.6,4774.5,1.35498]
[1756041575858,0.5296,4774.9,4774.8,0.80155]
[1756041576058,1.0816,4774.9,4774.8,1.63155]
[1756041576256,1.3054,4774.9,4774.8,1.50255]
[1756041577565,1.3237,4774.9,4774.8,0.57105]
[1756041577866,1.3237,4774.9,4774.8,0.41895]
[1756041578466,1.3567,4774.8,4774.7,0.41896]
[1756041578663,0.5537,4774.4,4774.3,0.41899]
[1756041578863,1.3567,4774.4,4774.3,0.41899]
[1756041580863,1.3567,4773.3,4773.2,0.79559]
[1756041581066,1.3567,4773.3,4772.3,1.04793]
[1756041581067,1.3567,4773.3,4772.8,1.00353]
[1756041581282,1.3567,4773.0,4772.8,0.3586]
[1756041581469,0.5537,4772.8,4772.7,0.57673]
[1756041581663,1.3567,4772.8,4772.7,0.57673]
[1756041583474,1.3567,4772.8,4772.7,1.53203]
[1756041583675,1.3567,4772.8,4772.7,1.66163]
[1756041586377,0.2195,4773.2,4773.1,1.6616]
[1756041586877,0.7732,4773.2,4773.1,1.6616]
[1756041587572,1.3567,4773.2,4773.1,20.0357]
[1756041587775,1.3567,4773.2,4773.1,0.4191]
[1756041588670,1.3567,4773.2,4772.9,0.41911]
[1756041588876,1.0412,4773.1,4773.0,0.41911]
[1756041589073,1.3567,4773.1,4773.0,0.41911]
[1756041593380,1.3567,4773.1,4773.0,1.15421]
[1756041593578,0.3796,4773.1,4773.0,1.66161]
[1756041593774,1.3567,4773.7,4773.6,1.66156]
[1756041593974,1.95065733,4773.7,4773.6,1.66156]
[1756041594281,0.7732,4774.1,4774.0,0.79552]
[1756041594581,1.95074974,4774.1,4774.0,1.37992]
[1756041595171,1.95074974,4774.1,4774.0,1.53192]
[1756041595573,0.75414974,4774.1,4774.0,1.66152]
[1756041595782,0.59404974,4774.1,4774.0,1.66152]
[1756041596378,0.59404974,4774.1,4774.0,1.91957307]
[1756041596775,0.4435,4774.5,4774.4,0.94749]
[1756041596984,0.58660091,4774.5,4774.4,1.91948815]
[1756041597377,0.80610091,4774.5,4774.4,1.91948815]
[1756041597578,0.58660091,4774.5,4774.4,1.91948815]
[1756041599084,0.58660091,4774.5,4774.4,1.91998272]
[1756041599286,0.58660091,4774.5,4774.4,2.1164812]
[1756041599979,0.80610091,4774.5,4774.4,2.1164812]
[1756041600376,1.35980091,4774.5,4774.4,2.1164812]
[1756041600588,1.94330091,4774.5,4774.4,2.1164812]
[1756041601381,1.94330091,4774.5,4774.4,1.66149]
[1756041601685,1.94330091,4774.5,4774.4,2.11658726]
[1756041602076,1.94330091,4774.5,4774.4,2.11656856]
[1756041602282,1.35980091,4774.5,4774.4,21.54156856]
[1756041602686,1.4884223,4776.0,4775.9,0.41886]
[1756041602889,0.5537,4776.0,4775.9,0.57646]
[1756041603185,0.5537,4776.0,4775.9,1.91987101]
[1756041603593,0.5537,4776.0,4775.9,2.09003545]
[1756041603892,0.5537,4776.7,4775.9,1.50207044]
[1756041604092,1.1327,4776.1,4776.0,0.25851101]
[1756041604291,1.3567,4776.1,4776.0,0.25851101]
[1756041604686,5.3567,4776.1,4776.0,0.25851101]
[1756041605090,1.3567,4776.1,4776.0,0.25851101]
[1756041605291,1.3567,4776.1,4776.0,0.78701101]
[1756041605486,1.3567,4776.1,4776.0,1.50101101]
[1756041606095,1.3567,4776.1,4776.0,1.27521101]
[1756041606591,30.176,4777.8,4776.0,1.27521101]
[1756041606592,0.9132,4776.7,4776.6,0.57639]
[1756041607187,1.3746,4776.7,4776.6,0.41879]
[1756041607986,1.3746,4776.7,4776.6,1.66849]
[1756041608787,1.3746,4776.7,4776.6,1.44589]
[1756041609194,1.353,4777.0,4776.9,1.44587]
[1756041609389,1.353,4777.0,4776.9,0.96357]
[1756041609595,1.353,4777.0,4776.9,0.57357]
[1756041610507,1.353,4776.9,4776.8,0.41877]
[1756041610797,1.353,4776.9,4776.8,1.31687]
[1756041610995,1.353,4776.9,4776.8,1.66847]
[1756041611195,1.0062,4777.3,4777.2,0.96354]
[1756041611399,1.0062,4777.3,4777.2,1.66844]
[1756041611696,0.8916,4777.6,4777.5,0.96351]
[1756041611889,1.353,4777.6,4777.5,0.96351]
[1756041612089,1.353,4777.6,4777.5,0.81021]
[1756041612594,1.353,4777.6,4777.5,1.44581]
[1756041613095,0.1528,4777.6,4777.5,1.66841]
[1756041613395,1.353,4777.9,4777.8,1.66839]
[1756041614895,1.0062,4777.9,4777.8,1.66839]
[1756041615094,1.353,4777.9,4777.8,1.66839]
[1756041615296,1.353,4777.9,4777.8,1.31679]
[1756041616601,1.353,4777.9,4777.8,0.57349]
[1756041616802,1.353,4777.9,4777.8,0.41869]
[1756041617695,0.8082,4777.8,4777.7,0.41869]
[1756041617895,1.353,4777.8,4777.7,0.41869]
[1756041618099,1.353,4777.6,4777.5,0.41871]
[1756041618300,1.353,4777.6,4777.5,0.57351]
[1756041618804,1.353,4777.6,4777.5,1.66841]
[1756041620907,1.353,4777.6,4777.5,0.1548]
[1756041621093,1.353,4777.6,4777.4,0.41872]
[1756041621298,1.353,4777.5,4777.4,0.41872]
[1756041622205,1.353,4777.5,4777.4,0.57352]
[1756041623004,1.7276223,4779.8,4779.7,0.3533]
[1756041623204,1.7276223,4779.8,4779.2,0.5733]
[1756041623205,1.4665638,4779.8,4779.2,0.5733]
[1756041623404,0.3056,4779.3,4779.2,0.3733]
[1756041623703,0.8916,4779.3,4779.2,0.1533]
[1756041624495,0.1,4780.2,4779.2,0.4426]
[1756041624700,0.3468,4779.9,4779.3,0.3533]
[1756041624998,0.8916,4779.5,4779.4,1.1181]
[1756041625199,1.1192,4779.5,4779.4,1.1181]
[1756041625398,1.1192,4779.5,4779.4,1.53665]
[1756041625697,1.353,4779.5,4779.4,1.53665]
[1756041625901,0.5448,4779.5,4779.0,0.3533]
[1756041626094,0.1,4780.2,4779.3,0.1533]
[1756041626095,1.353,4779.4,4779.3,0.1533]
[1756041626307,0.5448,4779.4,4779.2,0.41856]
[1756041626503,0.5448,4779.3,4778.9,0.41859]
[1756041626707,0.5448,4778.6,4778.5,0.8814]
[1756041626905,0.41864,4778.5,4778.1,0.22]
[1756041627205,0.5806,4779.9,4778.3,0.0209]
[1756041627406,1.1254,4779.9,4779.8,0.6141]
[1756041627708,1.1254,4779.9,4779.8,0.3774]
[1756041628210,1.1254,4779.9,4779.8,0.7674]
[1756041628401,1.1254,4779.9,4779.8,1.3407]
[1756041630502,3.5,4780.0,4779.9,1.75921]
[1756041630702,3.5,4780.0,4779.9,2.01577059]
[1756041630905,4.853,4780.0,4779.9,0.25656059]
[1756041631209,0.5448,4779.3,4779.2,0.5448]
[1756041631400,0.1528,4780.9,4779.9,0.2435]
[1756041631600,0.42041434,4780.9,4780.8,0.7674]
[1756041631805,0.42041434,4780.9,4780.8,0.3774]
[1756041632010,0.42041434,4780.9,4780.8,0.2226]
[1756041632709,0.42041434,4780.9,4780.6,0.2226]
[1756041632906,0.42041434,4780.9,4780.7,0.41843]
[1756041633309,0.4633,4780.7,4780.6,0.2226]
[1756041633508,1.0885,4780.7,4780.4,0.41846]
[1756041633711,1.0439,4780.6,4780.5,0.64105]
[1756041634111,1.0439,4780.6,4780.5,0.79585]
[1756041634312,1.61046066,4780.6,4780.5,1.75915]
[1756041634908,0.0446,4782.1,4781.4,0.41838]
[1756041635213,0.1789,4782.7,4782.3,0.64089]
[1756041635515,0.1789,4782.6,4782.4,0.2226]
[1756041635716,0.5806,4782.4,4782.3,0.41829]
[1756041635910,0.7595,4782.4,4782.3,0.41829]
[1756041636113,0.5806,4782.4,4782.3,0.64089]
[1756041637110,0.5533,4782.3,4782.2,0.4183]
[1756041637313,0.5072,4783.3,4782.0,0.41832]
[1756041637515,0.5072,4783.3,4781.8,0.2167]
[1756041637816,0.7319,4782.0,4781.4,0.41837]
[1756041638118,0.41831,4782.2,4781.4,0.41837]
[1756041638416,0.5533,4781.6,4781.5,0.63506]
[1756041639409,0.5533,4781.6,4781.5,1.20446]
[1756041640015,0.5533,4781.6,4781.5,0.87326]
[1756041640216,0.5533,4781.6,4781.5,0.63506]
[1756041640412,0.5533,4781.6,4781.1,0.9878]
[1756041640613,0.1786,4781.5,4781.1,0.4184]
[1756041640812,0.5533,4781.3,4781.1,0.6351]
[1756041641116,0.5533,4781.2,4781.1,0.4184]
[1756041641317,1.0816,4781.2,4781.1,0.5628]
[1756041641517,1.0816,4781.2,4781.1,0.7795]
[1756041642614,1.0816,4781.2,4781.1,0.3611]
[1756041643613,1.0816,4781.2,4781.1,1.3231]
[1756041643813,0.1022,4782.0,4781.1,0.7861]
[1756041644017,0.1022,4782.0,4780.2,30.143]
[1756041644018,0.4712,4782.0,4781.9,1.3231]
[1756041644313,0.1022,4782.0,4781.9,1.3231]
[1756041644624,0.5283,4782.9,4782.8,0.41825]
[1756041644822,1.0816,4782.9,4782.8,0.41825]
[1756041645013,1.0816,4782.9,4782.8,0.56265]
[1756041645209,1.2602,4783.3,4783.2,0.2167]
[1756041645414,0.5283,4782.7,4782.6,0.1444]
[1756041645722,1.0816,4782.7,4782.6,1.74137]
[1756041646115,1.0816,4782.7,4782.6,0.9919]
[1756041646516,1.0816,4782.7,4782.6,1.3231]
[1756041646715,1.0816,4782.7,4782.6,0.7537]
[1756041646915,1.64728788,4782.7,4782.6,0.7537]
[1756041647115,1.82588788,4782.7,4782.6,0.2167]
[1756041647318,1.64728788,4782.7,4782.6,0.7537]
[1756041647517,1.64728788,4782.7,4782.6,1.3231]
[1756041647821,0.56568788,4782.7,4782.6,1.3231]
[1756041649921,1.64728788,4782.7,4782.6,1.3231]
[1756041650520,1.64728788,4782.7,4782.6,1.17197]
[1756041650823,1.64728788,4782.7,4782.6,1.74137]
[1756041652323,0.56568788,4782.7,4782.6,1.74137]
[1756041653418,1.64728788,4782.7,4782.6,0.9919]
[1756041653619,1.64728788,4782.7,4782.6,0.7537]
[1756041653819,1.64728788,4782.7,4782.6,1.3231]
[1756041655024,1.48798788,4782.7,4782.6,1.3231]
[1756041655224,1.64728788,4782.7,4782.6,1.57883447]
[1756041655424,1.0816,4782.7,4782.6,1.57883447]
[1756041655625,1.64916575,4782.7,4782.6,1.57883447]
[1756041655925,1.82776575,4782.7,4782.6,0.2167]
[1756041656721,0.5283,4782.3,4782.2,0.3611]
[1756041656924,0.2162,4782.1,4782.0,0.41832]
[1756041657219,0.56756575,4782.2,4782.0,1.40739555]
[1756041657425,0.369,4782.5,4782.4,0.537]
[1756041657718,1.26610862,4782.5,4782.4,1.74139]
[1756041657921,1.65010862,4782.5,4782.4,1.74139]
[1756041658124,1.65010862,4782.5,4782.4,1.9977006]
[1756041658320,1.65010862,4782.5,4782.4,1.4283006]
[1756041658530,1.82870862,4782.5,4782.4,0.2563106]
[1756041658727,0.369,4783.1,4783.0,1.3231]
[1756041658922,0.369,4783.1,4783.0,1.44440043]
[1756041658923,0.5283,4783.1,4783.0,1.44440043]
[1756041659129,0.5283,4783.1,4783.0,0.66920043]
[1756041659331,0.5283,4783.1,4783.0,0.45250043]
[1756041660227,4.5283,4783.1,4783.0,0.2563106]
[1756041660530,0.369,4782.2,4782.1,0.2167]
[1756041660728,0.811,4782.2,4782.1,0.2167]
[1756041661033,0.442,4782.2,4782.1,0.19620501]
[1756041661421,0.442,4782.2,4782.1,0.41290501]
[1756041661625,0.442,4782.2,4782.1,0.19620501]
[1756041661828,4.442,4782.2,4782.1,0.19620501]
[1756041662028,0.2991,4782.1,4781.2,0.2167]
[1756041662228,0.41837,4781.6,4781.2,0.2167]
[1756041662530,0.41838,4781.5,4781.0,0.41841]
[1756041662728,0.2991,4781.4,4781.3,0.2167]
[1756041663126,0.41842,4781.0,4780.3,0.3312]
[1756041663339,0.41839,4781.3,4780.8,0.41842]
[1756041663537,0.41837,4781.6,4780.0,1.04626]
[1756041663737,0.41837,4781.6,4780.8,0.4549]
[1756041664034,0.41838,4781.4,4780.6,0.41845]
[1756041664235,0.41838,4781.4,4779.8,0.17025337]
[1756041664236,0.2991,4781.9,4780.8,0.2167]
[1756041664436,0.41841,4781.1,4780.7,0.5694]
[1756041664626,0.41842,4781.0,4780.8,0.2167]
[1756041664829,0.2991,4780.9,4780.8,0.2167]
[1756041665226,0.2991,4782.2,4780.9,0.3312]
[1756041665438,0.2991,4782.2,4781.8,0.41834]